[Event "Titled Tuesday Blitz November 08 Early 2022"]
[White "Kuchava, Ana"]
[Black "Manukian, Artak"]
[WhiteFideId "13605348"]
[BlackFideId "13301373"]
[WhiteElo "2001"]
[BlackElo "2130"]
[Result "0-1"]
[Round "07"]
[TimeControl "180+1"]
[Date "2022.11.09"]
[WhiteClock "0:00:01"]
[BlackClock "0:00:47"]

1. d4 {[%clk 0:03:00]}  d5 {[%clk 0:02:57]} 2. Nf3 {[%clk 0:02:56]}  Nf6 {[%clk 0:02:56]} 3. c4 {[%clk 0:02:55]}  dxc4 {[%clk 0:02:54]} 4. e3 {[%clk 0:02:54]}  e6 {[%clk 0:02:52]} 5. Bxc4 {[%clk 0:02:54]}  c5 {[%clk 0:02:53]} 6. O-O {[%clk 0:02:53]}  a6 {[%clk 0:02:52]} 7. a4 {[%clk 0:02:53]}  Nc6 {[%clk 0:02:50]} 8. Nc3 {[%clk 0:02:49]}  cxd4 {[%clk 0:02:47]} 9. exd4 {[%clk 0:02:49]}  Nb4 {[%clk 0:02:47]} 10. Bg5 {[%clk 0:02:48]}  Be7 {[%clk 0:02:46]} 11. Qe2 {[%clk 0:02:47]}  O-O {[%clk 0:02:45]} 12. Rad1 {[%clk 0:02:47]}  Bd7 {[%clk 0:02:41]} 13. Ne5 {[%clk 0:02:41]}  Bc6 {[%clk 0:02:40]} 14. Qe3 {[%clk 0:02:33]}  Nfd5 {[%clk 0:02:32]} 15. Bxe7 {[%clk 0:01:30]}  Nxe3 {[%clk 0:02:28]} 16. Bxd8 {[%clk 0:01:29]}  Nxd1 {[%clk 0:02:26]} 17. Be7 {[%clk 0:01:24]}  Nxc3 {[%clk 0:02:23]} 18. Bxb4 {[%clk 0:01:23]}  Nxa4 {[%clk 0:02:16]} 19. Bxf8 {[%clk 0:01:22]}  Kxf8 {[%clk 0:02:14]} 20. Nxc6 {[%clk 0:01:11]}  bxc6 {[%clk 0:02:15]} 21. b3 {[%clk 0:01:06]}  Nb6 {[%clk 0:02:14]} 22. Bd3 {[%clk 0:00:54]}  Ke7 {[%clk 0:02:10]} 23. Ra1 {[%clk 0:00:49]}  a5 {[%clk 0:02:06]} 24. Kf1 {[%clk 0:00:49]}  Kd6 {[%clk 0:02:02]} 25. Ke2 {[%clk 0:00:48]}  h6 {[%clk 0:01:54]} 26. Kd2 {[%clk 0:00:41]}  Nd5 {[%clk 0:01:49]} 27. Ra4 {[%clk 0:00:37]}  Kc7 {[%clk 0:01:41]} 28. Be4 {[%clk 0:00:29]}  Kb6 {[%clk 0:01:36]} 29. h4 {[%clk 0:00:10]}  Nb4 {[%clk 0:01:30]} 30. g3 {[%clk 0:00:09]}  Rd8 {[%clk 0:01:26]} 31. Ke3 {[%clk 0:00:09]}  Rc8 {[%clk 0:01:17]} 32. Ra1 {[%clk 0:00:06]}  c5 {[%clk 0:01:14]} 33. dxc5+ {[%clk 0:00:06]}  Rxc5 {[%clk 0:01:09]} 34. Kd4 {[%clk 0:00:06]}  f5 {[%clk 0:01:05]} 35. Bb1 {[%clk 0:00:04]}  e5+ {[%clk 0:01:05]} 36. Ke3 {[%clk 0:00:03]}  Nc2+ {[%clk 0:00:59]} 37. Bxc2 {[%clk 0:00:02]}  Rxc2 {[%clk 0:01:00]} 38. Rd1 {[%clk 0:00:02]}  Rc3+ {[%clk 0:00:57]} 39. Ke2 {[%clk 0:00:02]}  Rxb3 {[%clk 0:00:58]} 40. Rd6+ {[%clk 0:00:03]}  Kc5 {[%clk 0:00:55]} 41. Ra6 {[%clk 0:00:02]}  Rb5 {[%clk 0:00:53]} 42. Ra7 {[%clk 0:00:03]}  g5 {[%clk 0:00:51]} 43. Ra6 {[%clk 0:00:03]}  gxh4 {[%clk 0:00:50]} 44. gxh4 {[%clk 0:00:04]}  h5 {[%clk 0:00:48]} 45. Rh6 {[%clk 0:00:03]}  a4 {[%clk 0:00:49]} 46. Rxh5 {[%clk 0:00:03]}  a3 {[%clk 0:00:47]} 47. Rh8 {[%clk 0:00:02]}  Ra5 {[%clk 0:00:46]} 48. Rc8+ {[%clk 0:00:01]}  Kd4 {[%clk 0:00:46]} 49. Rc1 {[%clk 0:00:01]}  a2 {[%clk 0:00:46]} 50. Ra1 {[%clk 0:00:02]}  Kc3 {[%clk 0:00:47]} 51. h5 {[%clk 0:00:01]}  Kb2 {[%clk 0:00:47]} 0-1


[Site "https://www.chess.com"]

[Event "Titled Tuesday Blitz November 08 Early 2022"]
[White "Lawson, Eric"]
[Black "Mohamed, Saeed Laily"]
[WhiteFideId "2604116"]
[BlackFideId "9314946"]
[WhiteElo "2518"]
[BlackElo "1874"]
[Result "0-1"]
[Round "07"]
[TimeControl "180+1"]
[Date "2022.11.09"]
[WhiteClock "0:00:08"]
[BlackClock "0:00:01"]

1. e4 {[%clk 0:02:57]}  c6 {[%clk 0:02:59]} 2. d4 {[%clk 0:02:56]}  d5 {[%clk 0:03:00]} 3. e5 {[%clk 0:02:57]}  Bf5 {[%clk 0:03:00]} 4. Nf3 {[%clk 0:02:57]}  e6 {[%clk 0:03:00]} 5. Be2 {[%clk 0:02:58]}  Bb4+ {[%clk 0:03:00]} 6. c3 {[%clk 0:02:57]}  Ba5 {[%clk 0:03:00]} 7. O-O {[%clk 0:02:58]}  Nd7 {[%clk 0:02:59]} 8. Nbd2 {[%clk 0:02:58]}  h6 {[%clk 0:02:59]} 9. Re1 {[%clk 0:02:58]}  Ne7 {[%clk 0:02:58]} 10. Nf1 {[%clk 0:02:57]}  O-O {[%clk 0:02:58]} 11. Ne3 {[%clk 0:02:51]}  Bh7 {[%clk 0:02:58]} 12. Bd3 {[%clk 0:02:45]}  Bxd3 {[%clk 0:02:54]} 13. Qxd3 {[%clk 0:02:46]}  Bc7 {[%clk 0:02:54]} 14. c4 {[%clk 0:02:33]}  dxc4 {[%clk 0:02:42]} 15. Nxc4 {[%clk 0:02:27]}  Nb6 {[%clk 0:02:42]} 16. Na5 {[%clk 0:02:23]}  Qd5 {[%clk 0:02:31]} 17. Nxb7 {[%clk 0:02:15]}  Nd7 {[%clk 0:02:02]} 18. b3 {[%clk 0:01:45]}  Rfb8 {[%clk 0:01:39]} 19. Ba3 {[%clk 0:01:40]}  Rxb7 {[%clk 0:01:12]} 20. Bxe7 {[%clk 0:01:39]}  c5 {[%clk 0:00:41]} 21. Rad1 {[%clk 0:01:33]}  cxd4 {[%clk 0:00:39]} 22. Qxd4 {[%clk 0:01:30]}  Qxd4 {[%clk 0:00:39]} 23. Rxd4 {[%clk 0:01:30]}  Nxe5 {[%clk 0:00:38]} 24. Nxe5 {[%clk 0:01:08]}  Bxe5 {[%clk 0:00:38]} 25. Rxe5 {[%clk 0:01:08]}  Rxe7 {[%clk 0:00:37]} 26. Rc5 {[%clk 0:01:07]}  Kf8 {[%clk 0:00:33]} 27. f4 {[%clk 0:00:56]}  Ke8 {[%clk 0:00:33]} 28. Ra5 {[%clk 0:00:56]}  Rd7 {[%clk 0:00:30]} 29. Rda4 {[%clk 0:00:55]}  Kd8 {[%clk 0:00:20]} 30. Kf2 {[%clk 0:00:56]}  Kc8 {[%clk 0:00:20]} 31. Kf3 {[%clk 0:00:56]}  Kb7 {[%clk 0:00:20]} 32. Rb4+ {[%clk 0:00:55]}  Kc6 {[%clk 0:00:20]} 33. Ra6+ {[%clk 0:00:56]}  Kc7 {[%clk 0:00:16]} 34. h4 {[%clk 0:00:53]}  h5 {[%clk 0:00:11]} 35. Ra5 {[%clk 0:00:51]}  g6 {[%clk 0:00:11]} 36. Ke4 {[%clk 0:00:50]}  Kc6 {[%clk 0:00:08]} 37. Ke5 {[%clk 0:00:50]}  Rd5+ {[%clk 0:00:07]} 38. Rxd5 {[%clk 0:00:50]}  exd5 {[%clk 0:00:08]} 39. Rd4 {[%clk 0:00:41]}  Rd8 {[%clk 0:00:06]} 40. b4 {[%clk 0:00:39]}  Rd7 {[%clk 0:00:06]} 41. f5 {[%clk 0:00:34]}  a6 {[%clk 0:00:04]} 42. a4 {[%clk 0:00:34]}  gxf5 {[%clk 0:00:04]} 43. Kxf5 {[%clk 0:00:34]}  a5 {[%clk 0:00:04]} 44. bxa5 {[%clk 0:00:26]}  Kc5 {[%clk 0:00:04]} 45. Rd1 {[%clk 0:00:26]}  d4 {[%clk 0:00:04]} 46. Kg5 {[%clk 0:00:26]}  d3 {[%clk 0:00:05]} 47. Kxh5 {[%clk 0:00:26]}  d2 {[%clk 0:00:05]} 48. Kg4 {[%clk 0:00:26]}  Kc4 {[%clk 0:00:05]} 49. h5 {[%clk 0:00:21]}  Kc3 {[%clk 0:00:06]} 50. h6 {[%clk 0:00:21]}  f6 {[%clk 0:00:05]} 51. Kf5 {[%clk 0:00:21]}  Kc2 {[%clk 0:00:06]} 52. Rxd2+ {[%clk 0:00:20]}  Kxd2 {[%clk 0:00:06]} 53. Kxf6 {[%clk 0:00:20]}  Ke3 {[%clk 0:00:05]} 54. g4 {[%clk 0:00:20]}  Kf4 {[%clk 0:00:04]} 55. g5 {[%clk 0:00:18]}  Rd6+ {[%clk 0:00:03]} 56. Kg7 {[%clk 0:00:18]}  Kxg5 {[%clk 0:00:03]} 57. h7 {[%clk 0:00:19]}  Rd7+ {[%clk 0:00:03]} 58. Kg8 {[%clk 0:00:19]}  Kg6 {[%clk 0:00:02]} 59. h8=Q {[%clk 0:00:08]}  Rd8# {[%clk 0:00:01]} 0-1


[Site "https://www.chess.com"]

[Event "Titled Tuesday Blitz November 08 Early 2022"]
[White "Lopez Martinez, Josep Manuel"]
[Black "Moskvin, Anatoly"]
[WhiteFideId "2212943"]
[BlackFideId "24199990"]
[WhiteElo "2471"]
[BlackElo "2079"]
[Result "0-1"]
[Round "07"]
[TimeControl "180+1"]
[Date "2022.11.09"]
[WhiteClock "0:00:36"]
[BlackClock "0:00:07"]

1. e4 {[%clk 0:02:59]}  e5 {[%clk 0:02:59]} 2. Nf3 {[%clk 0:02:59]}  Nc6 {[%clk 0:03:00]} 3. Bb5 {[%clk 0:02:59]}  Nge7 {[%clk 0:03:00]} 4. O-O {[%clk 0:02:57]}  a6 {[%clk 0:03:01]} 5. Ba4 {[%clk 0:02:56]}  d6 {[%clk 0:03:01]} 6. d4 {[%clk 0:02:55]}  Bd7 {[%clk 0:03:02]} 7. c3 {[%clk 0:02:51]}  Ng6 {[%clk 0:03:01]} 8. Re1 {[%clk 0:02:51]}  Be7 {[%clk 0:02:58]} 9. g3 {[%clk 0:02:51]}  O-O {[%clk 0:02:51]} 10. h4 {[%clk 0:02:45]}  Bg4 {[%clk 0:02:39]} 11. d5 {[%clk 0:02:44]}  Nb8 {[%clk 0:02:38]} 12. Bc2 {[%clk 0:02:41]}  Nd7 {[%clk 0:01:01]} 13. Be3 {[%clk 0:02:29]}  Bxh4 {[%clk 0:00:58]} 14. Nbd2 {[%clk 0:02:26]}  Be7 {[%clk 0:00:56]} 15. Kg2 {[%clk 0:02:25]}  h6 {[%clk 0:00:56]} 16. Rh1 {[%clk 0:02:25]}  Nc5 {[%clk 0:00:55]} 17. b4 {[%clk 0:02:23]}  Nd7 {[%clk 0:00:54]} 18. Qg1 {[%clk 0:02:19]}  Nf6 {[%clk 0:00:47]} 19. Qh2 {[%clk 0:02:17]}  Re8 {[%clk 0:00:42]} 20. Ne1 {[%clk 0:02:05]}  Bf8 {[%clk 0:00:41]} 21. f3 {[%clk 0:02:05]}  Bd7 {[%clk 0:00:41]} 22. Nd3 {[%clk 0:02:01]}  c6 {[%clk 0:00:40]} 23. c4 {[%clk 0:01:59]}  b5 {[%clk 0:00:40]} 24. dxc6 {[%clk 0:01:58]}  Bxc6 {[%clk 0:00:40]} 25. cxb5 {[%clk 0:01:58]}  axb5 {[%clk 0:00:39]} 26. Bb3 {[%clk 0:01:47]}  d5 {[%clk 0:00:39]} 27. Nf2 {[%clk 0:01:38]}  dxe4 {[%clk 0:00:38]} 28. Ndxe4 {[%clk 0:01:35]}  Nxe4 {[%clk 0:00:34]} 29. fxe4 {[%clk 0:01:34]}  Ra6 {[%clk 0:00:25]} 30. Qh5 {[%clk 0:01:33]}  Ba8 {[%clk 0:00:18]} 31. Rad1 {[%clk 0:01:32]}  Qf6 {[%clk 0:00:17]} 32. Kg1 {[%clk 0:01:28]}  Rd8 {[%clk 0:00:15]} 33. Rf1 {[%clk 0:01:27]}  Qe7 {[%clk 0:00:14]} 34. Ng4 {[%clk 0:01:26]}  Bxe4 {[%clk 0:00:11]} 35. Rh2 {[%clk 0:01:21]}  Bd5 {[%clk 0:00:11]} 36. Bxh6 {[%clk 0:01:15]}  gxh6 {[%clk 0:00:09]} 37. Nxh6+ {[%clk 0:01:13]}  Bxh6 {[%clk 0:00:09]} 38. Qxh6 {[%clk 0:01:14]}  Bxb3 {[%clk 0:00:08]} 39. Qh7+ {[%clk 0:01:14]}  Kf8 {[%clk 0:00:07]} 40. axb3 {[%clk 0:01:14]}  Qa7+ {[%clk 0:00:08]} 41. Kh1 {[%clk 0:01:13]}  Ke8 {[%clk 0:00:08]} 42. Qg8+ {[%clk 0:01:11]}  Nf8 {[%clk 0:00:08]} 43. Rh8 {[%clk 0:01:11]}  Qe7 {[%clk 0:00:08]} 44. Rh7 {[%clk 0:01:08]}  Rf6 {[%clk 0:00:08]} 45. Re1 {[%clk 0:01:06]}  Rdd6 {[%clk 0:00:08]} 46. Qh8 {[%clk 0:01:05]}  Qe6 {[%clk 0:00:06]} 47. Rh4 {[%clk 0:00:57]}  Rd2 {[%clk 0:00:05]} 48. Qh5 {[%clk 0:00:55]}  Qc6+ {[%clk 0:00:03]} 49. Rhe4 {[%clk 0:00:55]}  Nd7 {[%clk 0:00:04]} 50. Qh8+ {[%clk 0:00:54]}  Ke7 {[%clk 0:00:04]} 51. Kg1 {[%clk 0:00:54]}  Rh6 {[%clk 0:00:05]} 52. Qg7 {[%clk 0:00:53]}  Qb6+ {[%clk 0:00:04]} 53. R1e3 {[%clk 0:00:51]}  Qf6 {[%clk 0:00:05]} 54. Qxf6+ {[%clk 0:00:48]}  Rxf6 {[%clk 0:00:06]} 55. Re1 {[%clk 0:00:47]}  Re6 {[%clk 0:00:06]} 56. g4 {[%clk 0:00:47]}  Rd3 {[%clk 0:00:06]} 57. g5 {[%clk 0:00:43]}  Rxb3 {[%clk 0:00:07]} 58. Rc1 {[%clk 0:00:43]}  Rg3+ {[%clk 0:00:07]} 59. Kf2 {[%clk 0:00:41]}  Rxg5 {[%clk 0:00:08]} 60. Rc7 {[%clk 0:00:40]}  f5 {[%clk 0:00:09]} 61. Re1 {[%clk 0:00:39]}  e4 {[%clk 0:00:09]} 62. Rd1 {[%clk 0:00:38]}  Rd6 {[%clk 0:00:09]} 63. Ra1 {[%clk 0:00:38]}  f4 {[%clk 0:00:10]} 64. Re1 {[%clk 0:00:37]}  Rd2+ {[%clk 0:00:09]} 65. Kf1 {[%clk 0:00:36]}  e3 {[%clk 0:00:07]} 66. Rc3 {[%clk 0:00:36]}  Rf2# {[%clk 0:00:07]} 0-1


[Site "https://www.chess.com"]

[Event "Titled Tuesday Blitz November 08 Early 2022"]
[White "Makridis, Dimitrios"]
[Black "Kukula, Pawel"]
[WhiteFideId "25864475"]
[BlackFideId "1115081"]
[WhiteElo "2272"]
[BlackElo "2046"]
[Result "1-0"]
[Round "07"]
[TimeControl "180+1"]
[Date "2022.11.09"]
[WhiteClock "0:00:16"]
[BlackClock "0:00:01"]

1. e4 {[%clk 0:03:00]}  c5 {[%clk 0:02:59]} 2. Nf3 {[%clk 0:03:00]}  Nc6 {[%clk 0:02:55]} 3. Bb5 {[%clk 0:02:59]}  e5 {[%clk 0:02:46]} 4. O-O {[%clk 0:02:57]}  Bd6 {[%clk 0:02:45]} 5. c3 {[%clk 0:02:56]}  a6 {[%clk 0:02:37]} 6. Ba4 {[%clk 0:02:53]}  Nge7 {[%clk 0:02:22]} 7. d4 {[%clk 0:02:34]}  cxd4 {[%clk 0:02:16]} 8. cxd4 {[%clk 0:02:35]}  Nxd4 {[%clk 0:02:16]} 9. Nxd4 {[%clk 0:02:27]}  exd4 {[%clk 0:02:17]} 10. Qxd4 {[%clk 0:02:24]}  Qc7 {[%clk 0:02:16]} 11. h3 {[%clk 0:02:15]}  Be5 {[%clk 0:02:15]} 12. Qd3 {[%clk 0:02:07]}  b5 {[%clk 0:02:05]} 13. Bb3 {[%clk 0:02:06]}  Bb7 {[%clk 0:02:05]} 14. Nc3 {[%clk 0:02:04]}  Rc8 {[%clk 0:02:02]} 15. Bd2 {[%clk 0:01:52]}  O-O {[%clk 0:01:51]} 16. f4 {[%clk 0:01:51]}  Bd6 {[%clk 0:01:47]} 17. Kh1 {[%clk 0:01:45]}  b4 {[%clk 0:01:37]} 18. Na4 {[%clk 0:01:41]}  Nc6 {[%clk 0:01:28]} 19. Be3 {[%clk 0:01:31]}  Qb8 {[%clk 0:00:58]} 20. Nb6 {[%clk 0:01:25]}  Rcd8 {[%clk 0:00:56]} 21. e5 {[%clk 0:01:25]}  Bc7 {[%clk 0:00:53]} 22. Nxd7 {[%clk 0:01:12]}  Qc8 {[%clk 0:00:42]} 23. Bc2 {[%clk 0:01:11]}  g6 {[%clk 0:00:38]} 24. Nf6+ {[%clk 0:01:11]}  Kg7 {[%clk 0:00:36]} 25. Qe2 {[%clk 0:00:59]}  Ne7 {[%clk 0:00:31]} 26. Be4 {[%clk 0:00:57]}  Qa8 {[%clk 0:00:21]} 27. Bc5 {[%clk 0:00:50]}  Bxe4 {[%clk 0:00:15]} 28. Bxe7 {[%clk 0:00:49]}  Bc6 {[%clk 0:00:12]} 29. Bxf8+ {[%clk 0:00:47]}  Rxf8 {[%clk 0:00:13]} 30. Rac1 {[%clk 0:00:46]}  Bb5 {[%clk 0:00:13]} 31. Qf2 {[%clk 0:00:38]}  Bd8 {[%clk 0:00:11]} 32. Rfd1 {[%clk 0:00:36]}  Be7 {[%clk 0:00:07]} 33. Rc7 {[%clk 0:00:30]}  Bxf6 {[%clk 0:00:06]} 34. exf6+ {[%clk 0:00:31]}  Kg8 {[%clk 0:00:06]} 35. Qh4 {[%clk 0:00:28]}  h5 {[%clk 0:00:05]} 36. Qg5 {[%clk 0:00:25]}  Kh7 {[%clk 0:00:03]} 37. Qe5 {[%clk 0:00:14]}  b3 {[%clk 0:00:01]} 38. axb3 {[%clk 0:00:14]}  Bc6 {[%clk 0:00:01]} 39. Rd2 {[%clk 0:00:13]}  Be4 {[%clk 0:00:01]} 40. Kg1 {[%clk 0:00:13]}  Bf5 {[%clk 0:00:01]} 41. Kh2 {[%clk 0:00:14]}  h4 {[%clk 0:00:02]} 42. Qd5 {[%clk 0:00:14]}  Qb8 {[%clk 0:00:01]} 43. Rxf7+ {[%clk 0:00:14]}  Rxf7 {[%clk 0:00:02]} 44. Qxf7+ {[%clk 0:00:15]}  Kh6 {[%clk 0:00:01]} 45. Qg7+ {[%clk 0:00:15]}  Kh5 {[%clk 0:00:01]} 46. Qh7# {[%clk 0:00:16]} 1-0


[Site "https://www.chess.com"]

[Event "Titled Tuesday Blitz November 08 Early 2022"]
[White "Martin, Lewis"]
[Black "Ronka, Erik"]
[WhiteFideId "410551"]
[BlackFideId "505080"]
[WhiteElo "2145"]
[BlackElo "2264"]
[Result "0-1"]
[Round "07"]
[TimeControl "180+1"]
[Date "2022.11.09"]
[WhiteClock "0:00:43"]
[BlackClock "0:01:29"]

1. e4 {[%clk 0:03:00]}  c5 {[%clk 0:02:59]} 2. Nf3 {[%clk 0:03:00]}  e6 {[%clk 0:02:59]} 3. d4 {[%clk 0:03:01]}  cxd4 {[%clk 0:03:00]} 4. Nxd4 {[%clk 0:03:01]}  Nf6 {[%clk 0:03:01]} 5. Nc3 {[%clk 0:03:02]}  d6 {[%clk 0:03:02]} 6. g3 {[%clk 0:02:59]}  Nc6 {[%clk 0:03:00]} 7. Nde2 {[%clk 0:02:57]}  Be7 {[%clk 0:02:59]} 8. Bg2 {[%clk 0:02:58]}  O-O {[%clk 0:02:59]} 9. O-O {[%clk 0:02:57]}  a6 {[%clk 0:02:59]} 10. h3 {[%clk 0:02:56]}  Qc7 {[%clk 0:02:59]} 11. f4 {[%clk 0:02:50]}  b5 {[%clk 0:02:59]} 12. a3 {[%clk 0:02:49]}  Bb7 {[%clk 0:02:58]} 13. g4 {[%clk 0:02:49]}  h6 {[%clk 0:02:57]} 14. Ng3 {[%clk 0:02:49]}  a5 {[%clk 0:02:47]} 15. g5 {[%clk 0:02:44]}  hxg5 {[%clk 0:02:47]} 16. fxg5 {[%clk 0:02:44]}  Nh7 {[%clk 0:02:47]} 17. h4 {[%clk 0:02:36]}  b4 {[%clk 0:02:46]} 18. Nce2 {[%clk 0:02:33]}  Ne5 {[%clk 0:02:42]} 19. Nf4 {[%clk 0:02:25]}  Rac8 {[%clk 0:02:36]} 20. Rf2 {[%clk 0:02:20]}  d5 {[%clk 0:02:24]} 21. Be3 {[%clk 0:02:16]}  dxe4 {[%clk 0:02:19]} 22. Nxe4 {[%clk 0:02:10]}  Nc4 {[%clk 0:02:11]} 23. Qe2 {[%clk 0:01:10]}  Bxe4 {[%clk 0:01:50]} 24. Bxe4 {[%clk 0:01:07]}  Nxe3 {[%clk 0:01:51]} 25. Qxe3 {[%clk 0:00:48]}  Bc5 {[%clk 0:01:44]} 26. Qd3 {[%clk 0:00:48]}  Bxf2+ {[%clk 0:01:42]} 27. Kxf2 {[%clk 0:00:47]}  Qxf4+ {[%clk 0:01:42]} 28. Kg2 {[%clk 0:00:44]}  Rfd8 {[%clk 0:01:29]} 29. Bxh7+ {[%clk 0:00:43]}  Kh8 {[%clk 0:01:29]} 0-1


[Site "https://www.chess.com"]

[Event "Titled Tuesday Blitz November 08 Early 2022"]
[White "Matinian, Nikita"]
[Black "Cella, Glaucio Dalla Cortt"]
[WhiteFideId "24129100"]
[BlackFideId "2119455"]
[WhiteElo "2422"]
[BlackElo "2011"]
[Result "1/2-1/2"]
[Round "07"]
[TimeControl "180+1"]
[Date "2022.11.09"]
[WhiteClock "0:01:22"]
[BlackClock "0:00:05"]

1. d4 {[%clk 0:03:00]}  Nf6 {[%clk 0:02:59]} 2. c4 {[%clk 0:03:01]}  e6 {[%clk 0:03:00]} 3. Nc3 {[%clk 0:03:01]}  Bb4 {[%clk 0:03:00]} 4. Bd2 {[%clk 0:03:01]}  c6 {[%clk 0:03:01]} 5. e3 {[%clk 0:03:00]}  d5 {[%clk 0:03:01]} 6. g4 {[%clk 0:02:57]}  Bxc3 {[%clk 0:02:59]} 7. Bxc3 {[%clk 0:02:57]}  Ne4 {[%clk 0:03:00]} 8. Qc2 {[%clk 0:02:56]}  f5 {[%clk 0:02:53]} 9. gxf5 {[%clk 0:02:55]}  exf5 {[%clk 0:02:54]} 10. O-O-O {[%clk 0:02:55]}  Nxc3 {[%clk 0:02:12]} 11. Qxc3 {[%clk 0:02:56]}  dxc4 {[%clk 0:02:10]} 12. Bxc4 {[%clk 0:02:55]}  Nd7 {[%clk 0:02:07]} 13. Nf3 {[%clk 0:02:54]}  Nb6 {[%clk 0:02:07]} 14. Ne5 {[%clk 0:02:55]}  Nxc4 {[%clk 0:02:02]} 15. Qxc4 {[%clk 0:02:56]}  Qd5 {[%clk 0:02:02]} 16. Qxd5 {[%clk 0:02:56]}  cxd5 {[%clk 0:02:02]} 17. h4 {[%clk 0:02:57]}  Be6 {[%clk 0:02:00]} 18. h5 {[%clk 0:02:57]}  Ke7 {[%clk 0:01:57]} 19. Kd2 {[%clk 0:02:57]}  Rac8 {[%clk 0:01:56]} 20. Rc1 {[%clk 0:02:45]}  Rxc1 {[%clk 0:01:56]} 21. Rxc1 {[%clk 0:02:44]}  Rc8 {[%clk 0:01:56]} 22. Rxc8 {[%clk 0:02:44]}  Bxc8 {[%clk 0:01:57]} 23. Ke2 {[%clk 0:02:42]}  Kf6 {[%clk 0:01:51]} 24. Kf3 {[%clk 0:02:39]}  a6 {[%clk 0:00:48]} 25. Kf4 {[%clk 0:02:38]}  Be6 {[%clk 0:00:46]} 26. b4 {[%clk 0:02:33]}  g5+ {[%clk 0:00:36]} 27. hxg6 {[%clk 0:02:33]}  hxg6 {[%clk 0:00:36]} 28. Nf3 {[%clk 0:02:31]}  Bd7 {[%clk 0:00:33]} 29. a3 {[%clk 0:02:29]}  b6 {[%clk 0:00:31]} 30. Ne5 {[%clk 0:02:27]}  g5+ {[%clk 0:00:30]} 31. Kg3 {[%clk 0:02:27]}  Ke7 {[%clk 0:00:25]} 32. f3 {[%clk 0:01:57]}  Be8 {[%clk 0:00:23]} 33. Kf2 {[%clk 0:01:49]}  Bb5 {[%clk 0:00:23]} 34. f4 {[%clk 0:01:43]}  g4 {[%clk 0:00:22]} 35. Kg3 {[%clk 0:01:43]}  Kf6 {[%clk 0:00:16]} 36. Kh4 {[%clk 0:01:44]}  Be8 {[%clk 0:00:15]} 37. Nd3 {[%clk 0:01:41]}  Bb5 {[%clk 0:00:15]} 38. Nf2 {[%clk 0:01:41]}  Be8 {[%clk 0:00:14]} 39. Nh1 {[%clk 0:01:41]}  Bb5 {[%clk 0:00:14]} 40. Kh5 {[%clk 0:01:41]}  Be8+ {[%clk 0:00:15]} 41. Kh6 {[%clk 0:01:41]}  Bb5 {[%clk 0:00:15]} 42. Ng3 {[%clk 0:01:41]}  Bd3 {[%clk 0:00:14]} 43. Nh5+ {[%clk 0:01:41]}  Ke6 {[%clk 0:00:13]} 44. Kg6 {[%clk 0:01:40]}  a5 {[%clk 0:00:13]} 45. Kg5 {[%clk 0:01:31]}  axb4 {[%clk 0:00:11]} 46. axb4 {[%clk 0:01:32]}  Bc2 {[%clk 0:00:09]} 47. b5 {[%clk 0:01:29]}  Bd3 {[%clk 0:00:09]} 48. Ng3 {[%clk 0:01:26]}  Bc2 {[%clk 0:00:04]} 49. Kg6 {[%clk 0:01:24]}  Bd3 {[%clk 0:00:04]} 50. Kg5 {[%clk 0:01:23]}  Bc2 {[%clk 0:00:04]} 51. Nh5 {[%clk 0:01:24]}  Bd3 {[%clk 0:00:05]} 52. Ng7+ {[%clk 0:01:24]}  Kd6 {[%clk 0:00:05]} 53. Nh5 {[%clk 0:01:22]}  Ke6 {[%clk 0:00:05]} 1/2-1/2


[Site "https://www.chess.com"]

[Event "Titled Tuesday Blitz November 08 Early 2022"]
[White "Mirzoev, Azer"]
[Black "Roux, Baptiste"]
[WhiteFideId "13400304"]
[BlackFideId "36017450"]
[WhiteElo "2525"]
[BlackElo "2077"]
[Result "1-0"]
[Round "07"]
[TimeControl "180+1"]
[Date "2022.11.09"]
[WhiteClock "0:01:22"]
[BlackClock "0:00:18"]

1. e4 {[%clk 0:02:59]}  c5 {[%clk 0:02:54]} 2. Nc3 {[%clk 0:02:58]}  a6 {[%clk 0:02:52]} 3. g3 {[%clk 0:02:59]}  b5 {[%clk 0:02:50]} 4. Bg2 {[%clk 0:03:00]}  Bb7 {[%clk 0:02:50]} 5. d3 {[%clk 0:03:00]}  g6 {[%clk 0:02:46]} 6. h4 {[%clk 0:02:59]}  h5 {[%clk 0:02:46]} 7. Nh3 {[%clk 0:02:58]}  Nf6 {[%clk 0:02:44]} 8. Ng5 {[%clk 0:02:54]}  d6 {[%clk 0:02:43]} 9. Nd5 {[%clk 0:02:47]}  Bg7 {[%clk 0:02:33]} 10. Nxf6+ {[%clk 0:02:40]}  Bxf6 {[%clk 0:02:33]} 11. c3 {[%clk 0:02:35]}  Nc6 {[%clk 0:02:29]} 12. O-O {[%clk 0:02:33]}  Qc7 {[%clk 0:02:17]} 13. Be3 {[%clk 0:02:31]}  Bxg5 {[%clk 0:02:04]} 14. Bxg5 {[%clk 0:02:29]}  O-O-O {[%clk 0:02:04]} 15. d4 {[%clk 0:02:28]}  cxd4 {[%clk 0:01:59]} 16. cxd4 {[%clk 0:02:28]}  Qb6 {[%clk 0:01:59]} 17. Be3 {[%clk 0:02:26]}  Qa5 {[%clk 0:01:57]} 18. a4 {[%clk 0:02:20]}  b4 {[%clk 0:01:56]} 19. Rc1 {[%clk 0:02:17]}  Kb8 {[%clk 0:01:56]} 20. Qb3 {[%clk 0:02:16]}  e6 {[%clk 0:01:49]} 21. Rfd1 {[%clk 0:02:15]}  Ne7 {[%clk 0:01:44]} 22. d5 {[%clk 0:02:11]}  exd5 {[%clk 0:01:41]} 23. exd5 {[%clk 0:02:11]}  Nf5 {[%clk 0:01:41]} 24. Bd2 {[%clk 0:02:09]}  Rhe8 {[%clk 0:01:23]} 25. Bxb4 {[%clk 0:02:07]}  Qb6 {[%clk 0:01:23]} 26. a5 {[%clk 0:02:07]}  Qb5 {[%clk 0:01:12]} 27. Bf1 {[%clk 0:02:05]}  Qd7 {[%clk 0:01:12]} 28. Bc3 {[%clk 0:01:58]}  Ka8 {[%clk 0:01:06]} 29. Qb6 {[%clk 0:01:51]}  Rc8 {[%clk 0:00:55]} 30. Bd3 {[%clk 0:01:47]}  Bxd5 {[%clk 0:00:45]} 31. Qxa6+ {[%clk 0:01:43]}  Qa7 {[%clk 0:00:45]} 32. Qxa7+ {[%clk 0:01:37]}  Kxa7 {[%clk 0:00:45]} 33. b4 {[%clk 0:01:31]}  Bf3 {[%clk 0:00:32]} 34. Bxf5 {[%clk 0:01:28]}  gxf5 {[%clk 0:00:23]} 35. Rd3 {[%clk 0:01:24]}  Ka6 {[%clk 0:00:18]} 36. Rxf3 {[%clk 0:01:22]} 1-0


[Site "https://www.chess.com"]